bitfinex/quotes_ETHUSD_20250715
["timestamp","ask_amount","ask_price","bid_price","bid_amount"]
[1752614707834,0.8082,3066.1,3065.1,5.053]
[1752614708037,0.1624,3065.2,3065.1,5.053]
[1752614708221,0.6373,3065.2,3065.1,5.053]
[1752614708930,3.89972985,3065.2,3065.1,5.29662538]
[1752614709111,3.89972985,3065.2,3065.1,5.053]
[1752614709710,4.72192985,3065.2,3065.1,5.053]
[1752614713899,3.26255536,3065.1,3064.9,5.053]
[1752614714099,3.89985536,3065.1,3064.9,5.053]
[1752614714706,0.4749,3065.0,3064.9,5.053]
[1752614715442,3.26264274,3065.0,3064.9,5.053]
[1752614715640,3.69784274,3065.0,3064.9,5.053]
[1752614716143,0.4352,3065.0,3064.8,5.053]
[1752614716338,3.26274919,3064.9,3064.8,5.053]
[1752614716544,3.69794919,3064.9,3064.8,5.053]
[1752614716751,3.26296237,3064.7,3064.4,0.03263281]
[1752614716924,0.5976,3064.8,3064.5,5.053]
[1752614717129,3.26302099,3064.7,3064.5,5.053]
[1752614719047,0.5976,3064.8,3064.5,5.053]
[1752614719261,1.2542,3064.7,3064.2,0.1624]
[1752614719416,0.1624,3064.5,3064.3,5.053]
[1752614719616,0.7625,3065.4,3064.5,0.821]
[1752614719823,1.1977,3065.7,3065.1,3.26253629]
[1752614720154,0.1624,3065.3,3065.2,5.053]
[1752614720317,0.1624,3065.3,3065.2,5.5057]
[1752614721656,3.26172547,3065.9,3065.4,3.26220849]
[1752614721954,0.1624,3065.8,3065.5,3.26210863]
[1752614722132,0.1624,3065.8,3065.6,5.053]
[1752614728167,0.1624,3065.8,3065.6,6.053]
[1752614728462,3.26189777,3065.7,3065.6,6.053]
[1752614729787,7.35148755,3065.7,3065.6,1.0]
[1752614730285,7.35148755,3065.7,3064.5,3.26316294]
[1752614730286,3.26268531,3065.0,3064.5,3.26316294]
[1752614730432,3.32618978,3065.7,3064.6,5.052]
[1752614730433,0.7634,3064.9,3064.6,5.052]
[1752614730633,0.9258,3064.9,3064.6,5.052]
[1752614730833,0.9258,3064.9,3064.7,5.052]
[1752614731464,0.1624,3064.9,3064.7,5.052]
[1752614732098,0.1624,3064.9,3064.6,3.262977]
[1752614732276,0.1624,3064.9,3064.7,5.052]
[1752614732464,0.1624,3064.9,3064.4,0.9649]
[1752614732682,0.1624,3064.9,3064.5,8.31511294]
[1752614732991,3.42516835,3064.9,3064.4,0.9649]
[1752614733157,3.42516835,3064.9,3064.5,5.052]
[1752614733358,0.1624,3064.9,3064.5,5.052]
[1752614733560,0.1624,3064.9,3064.5,8.31512647]
[1752614733757,3.42515565,3064.9,3064.5,5.052]
[1752614734397,4.02595237,3065.1,3064.2,4.07174594]
[1752614734398,3.2628858,3064.8,3064.2,4.07174594]
[1752614734565,0.1624,3064.7,3064.3,8.34796585]
[1752614734766,0.1624,3064.7,3064.3,8.31533197]
[1752614734961,0.1624,3064.7,3064.2,5.70259501]
[1752614735181,0.1624,3064.7,3064.4,5.052]
[1752614736063,3.42541349,3064.7,3064.4,5.052]
[1752614736268,3.42541349,3064.7,3064.5,5.052]
[1752614736602,0.1624,3064.7,3064.5,5.052]
[1752614739402,0.1624,3064.7,3064.3,3.26334649]
[1752614739707,0.1624,3064.7,3064.4,5.5047]
[1752614740066,0.8203,3064.6,3064.2,0.1624]
[1752614740272,0.1624,3064.5,3064.3,5.052]
[1752614744474,3.4256272,3064.5,3064.3,5.052]
[1752614744795,0.1624,3064.5,3064.3,5.052]
[1752614744968,3.42562207,3064.5,3064.3,5.052]
[1752614745174,0.1624,3064.5,3064.3,5.052]
[1752614745369,0.7896,3065.2,3064.4,8.15574697]
[1752614745674,0.78968978,3065.7,3064.4,8.15574697]
[1752614745675,0.7896,3065.5,3064.9,3.26274919]
[1752614745892,0.1624,3065.3,3065.0,5.4933]
[1752614746221,0.1624,3065.3,3065.0,8.75587721]
[1752614748795,0.1624,3065.3,3065.0,5.4933]
[1752614749913,0.1624,3065.3,3065.0,8.75594236]
[1752614750212,0.1624,3065.3,3065.1,3.26252639]
[1752614750432,0.1624,3065.3,3065.2,5.05]
[1752614755804,0.1624,3065.3,3064.7,0.6047]
[1752614756135,0.1624,3065.3,3064.8,8.31183871]
[1752614756136,0.1624,3065.1,3064.8,8.31183871]
[1752614756496,0.1624,3065.1,3064.8,8.75413871]
[1752614758335,0.1624,3065.1,3064.8,5.4913]
[1752614758655,0.1624,3065.1,3064.8,8.75414799]
[1752614760145,0.1624,3065.1,3064.8,5.4913]
[1752614760353,0.8247,3065.8,3065.4,3.2621512]
[1752614760647,0.1624,3065.6,3065.5,5.048]
[1752614760836,0.1624,3065.6,3065.5,5.4903]
[1752614761445,0.002,3065.6,3065.5,8.75241058]
[1752614773014,0.002,3065.6,3065.3,0.1624]
[1752614773170,3.26407662,3065.6,3065.4,5.045]
[1752614773372,0.1644,3065.6,3065.4,5.045]
[1752614773818,0.1644,3065.6,3065.2,3.73732343]
[1752614773971,0.1644,3065.6,3065.3,8.30729042]
[1752614774281,0.1644,3065.6,3065.3,5.4873]
[1752614774899,0.1644,3065.6,3065.4,0.4423]
[1752614775066,0.1644,3065.6,3065.5,5.045]
[1752614775515,3.42640417,3065.6,3065.5,5.045]
[1752614775680,0.1644,3065.6,3065.5,5.045]
[1752614776109,3.42640417,3065.6,3065.2,0.4322]
[1752614776311,1.2652,3065.5,3064.7,0.7913]
[1752614776471,0.1624,3065.2,3064.9,5.045]
[1752614776676,0.1624,3065.2,3064.8,0.03362855]
[1752614776677,3.262642,3065.1,3064.8,0.03362855]
[1752614776873,0.1624,3065.2,3064.9,5.045]
[1752614777105,0.1624,3065.2,3064.9,5.4772]
[1752614777286,0.1624,3065.2,3065.0,5.045]
[1752614778913,0.1624,3065.2,3065.1,5.045]
[1752614783293,0.1624,3065.2,3065.1,8.73973629]
[1752614783498,0.1644,3065.6,3065.4,3.26219523]
[1752614783794,0.1644,3065.6,3065.5,5.044]
[1752614784811,0.1644,3065.6,3065.5,8.73831058]
[1752614788261,0.1644,3065.6,3065.5,5.044]
[1752614788619,0.1644,3065.6,3065.3,3.69444651]
[1752614788855,0.1644,3065.6,3065.0,0.001]
[1752614788856,0.7791,3065.3,3065.0,0.001]
[1752614789154,3.26249049,3065.2,3065.1,5.043]
[1752614789355,0.73038211,3065.2,3065.1,5.043]
[1752614789554,0.1624,3065.2,3065.1,5.043]
[1752614789757,0.1624,3065.2,3065.1,8.73773629]
[1752614789957,0.1624,3065.2,3065.1,5.4752]
[1752614792338,0.002,3065.6,3065.1,5.50782536]
[1752614792537,0.1644,3065.6,3065.2,1.77751395]
[1752614792742,0.1644,3065.6,3065.3,8.76907964]
[1752614793060,0.1644,3065.6,3065.3,8.73645641]
[1752614793251,0.1644,3065.6,3065.4,0.4322]
[1752614793458,0.1644,3065.6,3065.5,5.042]
[1752614793681,0.1644,3065.6,3065.1,0.1624]
[1752614793850,0.1624,3065.4,3065.2,5.042]
[1752614794850,3.42471536,3065.4,3065.2,5.042]
[1752614795029,4.25341536,3065.4,3065.2,5.042]
[1752614795562,0.9911,3065.4,3065.2,5.042]
[1752614797066,4.25335589,3065.4,3065.2,5.042]
[1752614797368,4.25335589,3065.4,3065.0,0.03362642]
[1752614797369,0.829,3065.2,3065.0,0.001]
[1752614797548,3.26253629,3065.1,3065.0,0.001]
[1752614797748,3.73053629,3065.1,3065.0,5.042]
[1752614798862,3.73053629,3065.1,3065.0,0.001]
[1752614799045,3.73053629,3065.1,3065.0,5.042]
[1752614799244,4.5127329,3065.1,3065.0,5.042]
[1752614801062,4.5127329,3065.1,3065.0,0.001]
[1752614801267,4.5127329,3065.1,3065.0,5.042]
[1752614801996,0.1624,3065.4,3065.0,5.4742]
[1752614802221,0.002,3065.6,3065.2,0.55]
[1752614802499,0.002,3065.6,3065.5,3.42451058]
[1752614802640,0.002,3065.6,3065.5,8.46551058]
[1752614802845,0.002,3065.6,3065.5,9.34338543]
[1752614803050,0.002,3065.6,3065.5,10.71168543]
[1752614803397,0.7554,3066.8,3066.7,3.26083412]
[1752614803398,0.002,3066.8,3066.7,3.26083412]
[1752614803560,0.002,3066.8,3066.7,8.73403412]
[1752614804361,0.002,3066.8,3066.7,5.04]
[1752614805054,0.1624,3066.7,3066.4,3.26109093]
[1752614805259,0.1624,3066.7,3066.5,8.30102937]
[1752614805611,0.1624,3066.7,3066.5,8.76432937]
[1752614805765,0.1624,3066.7,3066.5,5.5033]
[1752614805973,0.1624,3066.7,3066.5,5.04]
[1752614806323,3.42324941,3066.7,3066.6,5.04]
[1752614806467,3.68879906,3066.7,3066.6,5.04]
[1752614806827,3.68879906,3066.7,3066.5,5.04]
[1752614806828,3.42334045,3066.6,3066.5,5.04]
[1752614806967,3.26094045,3066.6,3066.5,5.04]
[1752614807300,3.72774045,3066.6,3066.5,5.04]
[1752614811273,3.72774045,3066.6,3065.7,0.40301946]
[1752614811274,0.826,3066.5,3065.9,0.03261684]
[1752614811513,3.2615786,3066.0,3065.9,5.039]
[1752614812976,3.26200417,3065.6,3065.3,1.3963]
[1752614813197,3.26200417,3065.6,3065.4,5.5023]
[1752614813597,0.1624,3065.7,3065.4,5.5023]
[1752614813926,3.26253629,3065.1,3065.0,0.001]
[1752614814130,0.6524969,3065.1,3065.0,0.001]
[1752614814331,3.26253629,3065.1,3065.0,0.001]
[1752614815014,3.2622566,3065.4,3065.0,0.001]
[1752614815228,3.0,3065.8,3065.1,0.7801]
[1752614815433,0.1624,3065.4,3065.2,0.4633]
[1752614815729,0.1624,3065.4,3065.3,0.4633]
[1752614817106,0.1624,3065.4,3065.3,3.72562342]
[1752614817306,0.1624,3065.4,3065.3,0.4633]
[1752614820930,0.1624,3065.4,3065.2,3.26242558]
[1752614821135,0.1624,3065.4,3065.3,5.039]
[1752614823007,0.1624,3065.4,3065.2,3.72572209]
[1752614823204,0.1624,3065.4,3065.3,5.038]
[1752614826767,0.1624,3065.4,3065.3,5.34017482]
[1752614828128,0.1624,3065.4,3065.3,8.60249824]
[1752614828328,0.1624,3065.4,3065.3,5.34017482]
[1752614828762,0.1624,3065.4,3065.3,5.039]
[1752614828965,0.1624,3065.4,3065.3,5.34030201]
[1752614829467,0.1624,3065.4,3065.3,9.06597032]
[1752614829645,0.1624,3065.4,3065.3,6.78825393]
[1752614829834,0.1624,3065.4,3065.3,6.78825963]
[1752614832371,0.1624,3065.4,3065.3,5.3403526]
[1752614833968,0.1624,3065.4,3065.3,8.60267602]
[1752614834291,0.1624,3065.4,3065.3,5.8036526]
[1752614835596,0.1624,3065.4,3065.3,9.06597602]
[1752614835795,0.1624,3065.4,3065.3,5.8036526]
[1752614836495,0.1624,3065.4,3065.3,5.7843526]
[1752614836863,0.1624,3065.4,3065.3,9.04667602]
[1752614837097,24.80997,3066.0,3065.3,14.25065975]
[1752614837296,24.97237,3066.0,3065.7,3.2618216]
[1752614837600,24.97237,3066.0,3065.8,8.60065811]
[1752614837802,24.97237,3066.0,3065.9,0.30191797]
[1752614838497,24.97237,3066.0,3065.9,3.56360295]
[1752614838700,24.97237,3066.0,3065.9,0.30191797]
[1752614839702,3.26179137,3065.8,3065.3,0.001]
[1752614839905,0.7822,3065.5,3065.3,5.037]
[1752614840196,4.04433841,3065.5,3065.3,5.037]
[1752614841077,3.262217,3065.4,3065.3,5.037]
[1752614841281,3.726117,3065.4,3065.3,0.001]
[1752614841481,4.50315009,3065.4,3065.3,5.037]
[1752614842181,0.77703309,3065.4,3065.3,5.037]
[1752614842382,4.0443611,3065.5,3065.3,5.037]
[1752614844104,4.0443611,3065.5,3065.3,0.001]
[1752614844267,4.0443611,3065.5,3065.4,5.036]
[1752614844470,4.5082611,3065.5,3065.4,5.036]
[1752614845607,0.1624,3065.4,3065.3,0.001]
[1752614845903,0.1624,3065.4,3065.3,5.037]
[1752614849626,0.1624,3065.4,3065.3,8.74332342]
[1752614849827,0.1624,3065.4,3065.3,5.481]
[1752614850019,0.1624,3065.4,3065.3,10.39046364]
[1752614850212,0.002,3065.6,3065.5,3.26211058]
[1752614850406,0.002,3065.6,3065.5,8.29811058]
[1752614850603,0.002,3065.6,3065.5,8.74211058]
[1752614852642,0.002,3065.6,3065.3,0.1634]
[1752614852844,0.002,3065.6,3065.5,5.035]
[1752614854692,3.26400417,3065.6,3065.5,5.035]
[1752614854895,0.1624,3065.5,3065.3,0.001]
[1752614855125,3.72800224,3065.6,3065.3,0.001]
[1752614855126,0.1624,3065.4,3065.3,0.001]
[1752614855332,0.1624,3065.4,3065.3,5.036]
[1752614857795,0.1624,3065.4,3065.3,5.48]
[1752614859725,0.1624,3065.4,3065.3,5.036]
[1752614864444,5.00376964,3065.4,3065.3,5.035]
[1752614865840,5.00376964,3065.4,3065.3,0.001]
[1752614866044,5.00376964,3065.4,3065.3,5.034]
[1752614866645,5.00376964,3065.4,3065.3,0.001]
[1752614866848,4.53986964,3065.4,3065.3,5.034]
[1752614868057,3.76726964,3065.4,3065.3,5.034]
[1752614868229,3.424617,3065.4,3065.3,0.001]
[1752614868434,3.424617,3065.4,3065.3,5.034]
[1752614868743,0.1624,3065.4,3065.3,15.88999939]
[1752614868946,0.002,3065.6,3065.4,3.262217]
[1752614869145,0.002,3065.6,3065.5,5.69422098]
[1752614869346,0.002,3065.6,3065.5,6.13052098]
[1752614871225,0.002,3065.6,3065.5,11.16352098]
[1752614871459,0.002,3065.6,3065.5,11.13089988]
[1752614875524,0.002,3065.6,3065.5,11.12989988]
[1752614875921,0.002,3065.6,3065.5,11.67989988]
[1752614878254,0.002,3065.6,3065.5,14.67989988]
[1752614883469,0.002,3065.6,3065.5,14.67689988]
[1752614885664,0.002,3065.6,3065.5,11.24059988]
[1752614885831,0.002,3065.6,3065.5,11.67689988]
[1752614899516,0.002,3065.6,3065.5,14.67689988]
[1752614903139,0.002,3065.6,3065.4,0.1624]
[1752614903318,0.002,3065.6,3065.3,3.26324806]
[1752614903319,0.8147,3065.5,3065.3,3.26324806]
[1752614903654,0.8147,3065.5,3065.4,5.026]
[1752614904020,1.2754,3065.5,3065.4,5.026]
[1752614907030,1.2754,3065.5,3065.3,0.001]
[1752614907234,0.8147,3065.5,3065.4,5.026]
[1752614907933,0.8214,3065.4,3065.3,0.001]
[1752614908131,1.2821,3065.4,3065.3,5.027]
[1752614908447,1.4445,3065.4,3065.3,5.027]
[1752614912242,0.002,3065.6,3065.5,3.26211058]
[1752614912421,0.002,3065.6,3065.5,9.5205339]
[1752614912599,0.002,3065.6,3065.5,10.0970128]
[1752614912804,0.002,3065.6,3065.5,17.80438877]
[1752614913737,0.002,3065.6,3065.5,10.6470128]
[1752614923767,0.002,3065.6,3065.5,10.2003128]
[1752614924113,0.002,3065.6,3065.5,10.6470128]
[1752614924912,0.4627,3065.6,3065.5,0.1624]
[1752614925106,0.4627,3065.6,3065.5,5.023]
[1752614925311,1.2194,3065.6,3065.5,5.023]
[1752614925951,1.2194,3065.6,3065.4,3.26220184]
[1752614926259,1.2194,3065.6,3065.5,5.023]
[1752614926409,1.2194,3065.6,3065.3,3.42567798]
[1752614926604,0.4617,3065.5,3065.3,0.1634]
[1752614926854,0.4617,3065.5,3065.4,5.023]
[1752614934071,0.4637,3065.5,3065.4,5.023]
[1752614934368,0.4637,3065.5,3065.4,5.022]
[1752614934666,0.4637,3065.5,3065.3,0.1634]
[1752614934867,0.002,3065.5,3065.4,5.022]
[1752614936274,0.4637,3065.5,3065.4,5.022]
[1752614936949,3.7258534,3065.5,3065.3,0.001]
[1752614937281,0.002,3065.5,3065.3,0.001]
[1752614937439,0.9814,3065.4,3065.3,0.001]
[1752614937638,0.9814,3065.4,3065.3,5.023]
[1752614937869,1.4431,3065.4,3065.3,5.023]
[1752614938790,1.91402177,3065.4,3065.3,5.023]
[1752614939591,0.6241,3065.4,3065.3,5.023]
[1752614942942,3.886317,3065.4,3065.3,5.023]
[1752614943142,0.6241,3065.4,3065.3,5.023]
[1752614943346,0.6241,3065.4,3065.3,0.001]
[1752614943542,0.6241,3065.4,3065.3,5.022]
[1752614946194,0.1624,3065.4,3065.3,5.022]
[1752614946851,0.6241,3065.4,3065.3,5.022]
[1752614947053,0.6241,3065.4,3065.3,0.001]
[1752614947254,0.6241,3065.4,3065.3,5.022]
[1752614948094,0.6241,3065.4,3065.3,0.001]
[1752614948293,0.6241,3065.4,3065.3,5.022]
[1752614949328,1.0939248,3065.4,3065.3,5.021]
[1752614950408,4.3561418,3065.4,3065.3,5.021]
[1752614950824,1.0939248,3065.4,3065.3,5.021]
[1752614952618,4.3561418,3065.4,3065.3,5.021]
[1752614954575,4.3561418,3065.4,3065.3,0.001]
[1752614954822,5.1752418,3065.4,3065.3,5.021]
[1752614955005,5.1752418,3065.4,3065.3,5.0077]
[1752614956721,3.26253629,3065.1,3065.0,0.001]
[1752614956874,4.69893364,3065.1,3065.0,0.001]
[1752614957079,5.13653364,3065.1,3065.0,5.02]
[1752614957293,5.13653364,3065.1,3065.0,0.001]
[1752614958229,8.13653364,3065.1,3065.0,0.001]
[1752614958424,13.15553364,3065.1,3065.0,0.001]
[1752614960339,13.15553364,3065.1,3065.0,1e-08]
[1752614960962,3.26274919,3064.9,3064.8,1e-08]
[1752614961247,21.12821454,3064.9,3064.8,1e-08]
[1752614961653,21.56581454,3064.9,3064.8,1e-08]
[1752614963001,4.07278804,3064.3,3064.2,0.001]
[1752614963222,16.24916401,3064.3,3064.2,0.001]
[1752614963507,12.52938804,3064.3,3064.2,0.001]
[1752614963711,13.51438334,3064.3,3064.2,0.001]
[1752614965017,13.51538334,3064.3,3064.2,0.001]
[1752614965608,8.49538334,3064.3,3064.2,0.001]
[1752614965842,3.8094,3064.3,3064.2,0.001]
[1752614966213,0.8235,3064.7,3064.2,0.4409]
[1752614966441,0.1624,3064.3,3064.2,0.001]
[1752614966954,0.1624,3064.3,3064.2,3.26445297]
[1752614967114,0.1624,3064.3,3064.2,3.70435297]
[1752614967516,0.1624,3064.3,3064.2,4.48678134]
[1752614970964,3.0,3065.1,3064.8,3.26277138]
[1752614971163,3.0,3065.1,3064.8,3.70267138]
[1752614971831,5.021,3065.5,3064.6,8.28197668]
[1752614971832,0.002,3065.5,3065.1,3.26247832]
[1752614972032,0.002,3065.5,3065.1,3.70237832]
[1752614972233,0.002,3065.5,3065.2,3.70230357]
[1752614973337,0.002,3065.5,3065.3,0.4399]
[1752614973536,0.1624,3065.2,3065.1,3.26249373]
[1752614974061,0.1624,3065.2,3065.1,3.70239373]
[1752614975772,0.1624,3065.2,3065.1,0.4399]
[1752614980986,0.1624,3065.2,3065.0,5.018]
[1752614981186,0.1624,3065.2,3065.0,5.4579]
[1752614982754,0.1624,3065.2,3065.0,5.018]
[1752614982954,0.1624,3065.2,3065.1,0.4399]
[1752614983151,0.1624,3065.2,3064.8,0.001]
[1752614983358,0.8211,3065.5,3064.8,0.001]
[1752614983359,0.1624,3065.0,3064.8,5.017]
[1752614983577,3.70034919,3064.9,3064.8,0.001]
[1752614983906,3.70034919,3064.9,3064.8,5.017]
[1752614984711,3.70034919,3064.9,3064.8,0.001]
[1752614984924,4.47837838,3064.9,3064.8,0.001]
[1752614985568,5.27667838,3064.9,3064.8,0.001]
[1752614987712,8.27667838,3064.9,3064.8,0.001]
[1752614993859,7.04077838,3064.9,3064.8,0.001]
[1752614994027,0.7983,3065.4,3064.8,0.4545]
[1752614994232,3.26269586,3065.0,3064.8,0.4545]
[1752614994954,3.26274919,3064.9,3064.8,0.4545]
[1752614996752,3.26269498,3065.0,3064.8,0.4545]
[1752614997156,3.26274919,3064.9,3064.8,0.4545]
[1752614997357,3.26269084,3065.0,3064.8,0.4545]
[1752614997658,3.26266736,3065.0,3064.8,0.4545]
[1752614998329,3.26253726,3065.1,3064.9,0.4535]
[1752614998551,6.26264274,3065.0,3064.9,0.4398]
[1752614998979,3.26246597,3065.2,3064.8,0.001]
[1752614999282,0.1624,3064.9,3064.8,0.001]
[1752615000290,0.1624,3064.9,3064.8,3.26385565]
[1752615000583,0.002,3065.0,3064.8,1.69064204]
[1752615000878,0.002,3065.0,3064.9,0.4535]
[1752615002480,0.002,3065.0,3064.9,3.71624919]
[1752615002685,0.002,3065.0,3064.9,0.4535]
[1752615002979,0.002,3065.0,3064.9,4.50534919]
[1752615005088,0.002,3065.0,3064.9,5.25037668]
[1752615005254,0.002,3065.0,3064.9,13.25917582]
[1752615005454,0.002,3065.0,3064.9,13.22654833]
[1752615005651,0.002,3065.5,3065.4,4.601317]
[1752615005857,0.002,3065.5,3065.4,9.776717]
[1752615006058,0.002,3065.5,3065.4,10.230217]
[1752615006381,0.002,3065.5,3065.4,11.2532387]
[1752615010166,1e-08,3065.5,3065.4,11.2532387]
[1752615010371,1e-08,3065.5,3065.4,14.2532387]
[1752615010749,1e-08,3065.5,3065.4,14.50286573]
[1752615010957,1e-08,3065.6,3065.5,6.81211058]
[1752615011295,1e-08,3065.6,3065.5,18.09170611]
[1752615015663,1e-08,3065.6,3065.5,15.39433014]
[1752615016603,1e-08,3065.6,3065.5,15.94433014]
[1752615020598,1e-08,3065.6,3065.5,6.93083014]
[1752615020800,1e-08,3065.6,3065.5,11.27111058]
[1752615021004,1e-08,3065.6,3065.5,11.74501058]
[1752615022544,1e-08,3065.6,3065.5,12.29501058]
[1752615022841,1e-08,3065.6,3065.5,3.26211058]
[1752615023007,1e-08,3065.6,3065.5,8.30373168]
[1752615023207,1e-08,3065.6,3065.5,8.27111058]
[1752615023470,1e-08,3065.6,3065.1,9.1195]
[1752615023471,1e-08,3065.6,3065.1,8.6456]
[1752615023603,1e-08,3065.6,3065.2,5.009]
[1752615023604,0.4558,3065.5,3065.2,5.009]
[1752615023812,0.4558,3065.4,3065.2,8.30403463]
[1752615024046,0.4558,3065.4,3065.2,8.25721034]
[1752615024423,0.4558,3065.4,3065.1,7.834]
[1752615024646,0.4558,3065.3,3065.2,5.009]
[1752615024964,4.16904863,3065.3,3065.2,5.009]
[1752615026314,3.71812342,3065.3,3065.2,5.009]
[1752615027060,4.05333117,3065.5,3065.2,5.009]
[1752615027061,0.7912,3065.5,3065.2,5.009]
[1752615027246,0.4558,3065.4,3065.3,5.009]
[1752615027435,0.4558,3065.4,3064.9,0.001]
[1752615027637,3.26242658,3065.3,3065.0,5.009]
[1752615028022,0.4558,3065.2,3065.0,5.009]
[1752615028857,0.7912,3065.5,3065.0,8.27157958]
[1752615028858,1.247,3065.5,3065.0,8.27157958]
[1752615029062,0.4558,3065.4,3065.0,8.27157958]
[1752615031973,0.4558,3065.3,3065.0,5.009]
[1752615032377,0.4558,3065.3,3065.0,8.27158387]
[1752615034188,0.4558,3065.3,3065.0,5.009]
[1752615036402,0.1624,3065.4,3065.0,5.009]
[1752615036696,0.1624,3065.1,3064.9,0.001]
[1752615036981,0.1624,3065.1,3065.0,5.009]
[1752615037174,0.6182,3065.1,3065.0,5.009]
[1752615040218,3.88073629,3065.1,3065.0,5.009]
[1752615040982,4.71696941,3065.1,3065.0,5.009]
[1752615041182,4.71696941,3065.1,3064.9,0.001]
[1752615041183,3.26264274,3065.0,3064.9,0.001]
[1752615041493,4.47774274,3065.0,3064.9,5.01]
[1752615041680,4.47774274,3065.0,3064.9,0.001]
[1752615041873,5.35163396,3065.0,3064.9,0.001]
[1752615047393,0.1624,3065.1,3064.9,0.001]
[1752615048144,4.50464274,3065.0,3064.9,0.001]
[1752615048884,1.242,3065.0,3064.9,0.001]
[1752615049086,4.50464274,3065.0,3064.9,0.001]
[1752615051789,5.29759955,3065.0,3064.9,0.001]
[1752615053249,8.29759955,3065.0,3064.9,0.001]
[1752615055562,14.24002516,3064.9,3064.8,1e-08]
[1752615055707,19.71772516,3064.9,3064.8,1e-08]
[1752615056601,20.26772516,3064.9,3064.8,1e-08]
[1752615056803,4.08328804,3064.3,3064.2,0.001]
[1752615057036,19.24866401,3064.3,3064.2,0.001]
[1752615057241,19.71836401,3064.3,3064.2,0.001]
[1752615062429,19.71836401,3064.3,3064.0,1e-08]
[1752615062430,4.02420105,3064.1,3064.0,1e-08]
[1752615062617,12.46866423,3064.1,3064.0,1e-08]
[1752615063045,12.93836423,3064.1,3064.0,1e-08]
[1752615063225,4.02441409,3063.9,3063.8,1e-08]
[1752615063547,7.02441409,3063.9,3063.8,1e-08]
[1752615064029,7.49411409,3063.9,3063.8,1e-08]
[1752615064344,20.45344687,3063.9,3063.8,1e-08]
[1752615065344,13.2960709,3063.9,3063.8,1e-08]
[1752615070206,13.2970709,3063.9,3063.8,1e-08]
[1752615071259,9.35295681,3063.9,3062.3,0.001]
[1752615071554,9.35295681,3063.9,3062.0,0.7812]
[1752615071555,3.0,3062.3,3062.0,0.7812]
[1752615071923,3.03265323,3062.3,3062.2,0.4503]
[1752615072111,3.0,3062.6,3062.2,3.71588933]
[1752615072315,0.03265323,3062.5,3062.3,3.26547866]
[1752615072538,0.03265323,3062.5,3062.4,0.4493]
[1752615073108,3.0,3062.7,3062.4,0.4493]
[1752615073109,0.03265323,3062.7,3062.4,0.4493]
[1752615073312,0.1705,3062.9,3062.7,3.26506588]
[1752615073313,5.015,3062.8,3062.7,3.26506588]
[1752615073516,5.1845,3062.9,3062.7,3.26506588]
[1752615073714,5.1845,3062.9,3062.8,0.4493]
[1752615073954,0.1705,3062.9,3062.8,3.71428628]
[1752615074140,0.1705,3062.9,3062.8,5.19342416]
[1752615074453,0.1705,3062.9,3062.8,4.49548628]
[1752615076761,3.03265323,3063.4,3063.0,3.26468562]
[1752615077121,3.03265323,3063.4,3063.0,3.70658562]
[1752615077757,0.03265323,3063.4,3063.1,3.26466651]
[1752615077920,0.8185,3063.7,3063.2,1.2146]
[1752615077921,0.03265323,3063.7,3063.2,1.2146]
[1752615078253,0.03265323,3063.7,3063.3,3.70635336]
[1752615078444,0.03265323,3063.7,3063.4,3.26434213]
[1752615078643,0.03265323,3063.7,3063.4,3.70624213]
[1752615078961,0.03265323,3063.7,3063.5,0.4419]
[1752615079454,0.03265323,3063.8,3063.5,0.4419]
[1752615080558,0.03265323,3063.8,3063.6,0.4419]
[1752615081057,0.03265323,3063.9,3063.6,0.4419]
[1752615081257,0.91704855,3063.9,3063.6,0.4419]
[1752615082361,0.03265323,3063.9,3063.8,3.26392062]
[1752615082565,0.03265323,3064.3,3063.8,0.4419]
[1752615082765,0.1624,3064.2,3063.9,3.29645223]
[1752615082925,0.1624,3064.2,3064.1,3.26360105]
[1752615083120,0.1624,3064.2,3064.1,4.37142713]
[1752615083361,0.1624,3064.2,3064.1,4.81332713]
[1752615083564,0.03265323,3064.8,3064.2,0.8126]
[1752615083726,0.1624,3064.5,3064.4,3.26328155]
[1752615083933,0.1624,3064.5,3064.4,3.70518155]
[1752615084866,0.04,3064.9,3064.8,3.26285565]
[1752615085227,0.04,3064.9,3064.8,3.70475565]
[1752615085529,0.2024,3064.9,3064.8,3.70475565]
[1752615086639,0.2024,3064.9,3064.8,4.45555565]
[1752615086884,0.04,3064.9,3064.8,5.72860722]
[1752615087846,0.04,3064.9,3064.8,4.45555565]
[1752615088157,0.042,3064.9,3064.8,4.45555565]
[1752615094410,0.7976,3064.8,3064.0,0.4419]
[1752615094609,0.1624,3064.3,3063.9,4.19514139]
[1752615094913,0.1624,3064.3,3064.1,5.008]
[1752615095464,0.1624,3064.3,3064.1,5.4499]
[1752615099922,0.1624,3064.3,3064.2,0.4419]
[1752615100123,0.03465323,3065.2,3064.3,0.55]
[1752615100270,0.1624,3064.8,3064.7,3.26287767]
[1752615100470,0.1624,3064.8,3064.7,8.27087767]
[1752615100705,0.1624,3064.8,3064.7,8.71277767]
[1752615104713,0.1624,3064.8,3064.7,5.4499]
[1752615107803,0.1624,3064.8,3064.7,0.4419]
[1752615108018,0.1624,3064.8,3064.7,5.4489]
[1752615109718,0.1624,3064.8,3064.7,5.007]
[1752615109880,0.1624,3064.8,3064.1,0.94825504]
[1752615109881,0.64335323,3064.8,3064.1,0.4393]
[1752615110079,0.1624,3064.3,3064.2,5.007]